bitfinex-derivatives/quotes_SOLF0:USTF0_20250830
["timestamp","ask_amount","ask_price","bid_price","bid_amount"]
[1756557901575,3.42696884,200.16,200.1,7.85450899]
[1756557901770,2.47515666,200.17,200.1,7.85450899]
[1756557901976,3.42708671,200.16,200.1,7.85450899]
[1756557902175,2.47515666,200.17,200.1,7.85450899]
[1756557902376,3.42570443,200.16,200.1,7.85450899]
[1756557902572,2.47515666,200.14,200.1,0.03450899]
[1756557902777,2.57515666,200.11,200.1,0.03450899]
[1756557902982,2.47515666,200.11,200.1,0.03450899]
[1756557903178,2.47515666,200.14,200.1,7.85450899]
[1756557903684,0.1,200.13,200.1,0.03450899]
[1756557905282,2.47515666,200.14,200.1,0.03450899]
[1756557905482,2.57515666,200.14,200.1,0.03450899]
[1756557905984,2.47515666,200.14,200.1,0.03450899]
[1756557906282,0.1,200.13,200.1,0.03450899]
[1756557906476,2.47515666,200.14,200.1,0.03450899]
[1756557906674,0.1,200.12,200.1,0.03450899]
[1756557908576,0.07,200.13,200.1,0.03450899]
[1756557908773,2.47515666,200.14,200.1,0.03450899]
[1756557909080,2.54515666,200.11,200.1,0.03450899]
[1756557910086,0.46549101,200.1,200.02,7.55]
[1756557910284,2.50957057,200.13,200.02,7.55]
[1756557910584,3.42801681,200.12,200.02,7.55]
[1756557910779,2.47515666,200.13,200.02,7.55]
[1756557910982,2.47515666,200.15,200.05,7.55]
[1756557911177,2.47515666,200.18,200.08,7.55]
[1756557911378,0.03640584,200.1,200.08,7.55]
[1756557911684,0.07,200.19,200.08,7.55]
[1756557911880,0.03801222,200.11,200.08,7.55]
[1756557912079,338.35515666,200.2,200.11,7.55]
[1756557912281,3.42993917,200.19,200.11,7.58692906]
[1756557912481,2.47515666,200.2,200.11,7.58692906]
[1756557912680,3.42901472,200.19,200.11,7.58692906]
[1756557912882,2.47515666,200.2,200.11,7.58692906]
[1756557913080,3.42901472,200.19,200.11,7.58692906]
[1756557913282,2.47515666,200.2,200.11,7.58692906]
[1756557913480,3.42874324,200.19,200.11,7.58692906]
[1756557913682,2.47515666,200.2,200.11,7.58692906]
[1756557913982,3.42874324,200.19,200.11,7.58692906]
[1756557914178,2.58515666,200.2,200.11,7.58692906]
[1756557914484,3.43022386,200.19,200.11,7.58692906]
[1756557914682,2.58515666,200.2,200.11,7.58692906]
[1756557914978,3.42951979,200.19,200.11,7.58692906]
[1756557915176,0.11,200.2,200.11,7.58692906]
[1756557916780,2.47515666,200.21,200.11,7.58692906]
[1756557917481,0.11,200.24,200.14,7.55]
[1756557917482,2.58515666,200.24,200.14,7.55]
[1756557917681,3.42827088,200.23,200.14,7.55]
[1756557917882,3.42827088,200.22,200.14,7.55]
[1756557918082,0.11,200.24,200.14,7.55]
[1756557918287,3.42827206,200.23,200.17,7.55]
[1756557918476,0.11,200.24,200.17,7.55]
[1756557918782,3.42792892,200.23,200.17,7.55]
[1756557919086,0.11,200.24,200.17,7.55]
[1756557919887,0.97944573,200.3,200.17,7.55]
[1756557920190,3.42668976,200.29,200.19,2.47515666]
[1756557920381,2.47515666,200.29,200.2,7.55]
[1756557920585,0.11,200.31,200.22,0.0346712]
[1756557920883,2.47515666,200.29,200.22,0.0346712]
[1756557921885,0.11,200.31,200.22,0.0346712]
[1756557922081,2.58515666,200.31,200.23,7.55]
[1756557922585,2.47515666,200.29,200.23,7.55]
[1756557922786,2.47515666,200.3,200.23,7.55]
[1756557922985,0.11,200.31,200.23,7.55]
[1756557923782,0.11,200.34,200.23,7.55]
[1756557923987,3.42016392,200.33,200.23,7.55]
[1756557924186,0.11,200.34,200.23,7.55]
[1756557924386,0.13,200.32,200.23,7.55]
[1756557924591,2.47515666,200.31,200.26,0.0316779]
[1756557924890,0.13,200.3,200.26,0.0316779]
[1756557925088,2.47515666,200.31,200.26,0.0316779]
[1756557925289,0.13,200.27,200.26,0.0316779]
[1756557926187,0.13,200.29,200.26,0.0316779]
[1756557926691,2.47515666,200.3,200.26,7.5816779]
[1756557926891,2.60515666,200.33,200.26,7.5816779]
[1756557927093,3.41775286,200.32,200.26,7.5816779]
[1756557927288,3.41775286,200.31,200.26,7.5816779]
[1756557927590,0.13,200.33,200.26,7.5816779]
[1756557928892,2.60515666,200.33,200.26,7.5816779]
[1756557929587,0.13,200.33,200.26,7.5816779]
[1756557929786,2.60515666,200.33,200.26,7.5816779]
[1756557930092,0.13,200.33,200.26,7.5816779]
[1756557932983,2.47515666,200.34,200.26,7.5816779]
[1756557934693,0.13,200.37,200.26,7.5816779]
[1756557934895,3.41266457,200.36,200.28,2.47515666]
[1756557935098,0.13,200.37,200.29,7.55]
[1756557935690,2.47515666,200.38,200.31,7.58332331]
[1756557936591,132.55,200.41,200.31,7.58332331]
[1756557936791,2.47515666,200.38,200.31,7.58332331]
[1756557936991,2.47515666,200.34,200.31,0.03332331]
[1756557937197,2.59515666,200.32,200.31,0.03332331]
[1756557937496,0.12,200.32,200.31,0.03332331]
[1756557937695,2.59515666,200.32,200.31,0.03332331]
[1756557937890,2.47515666,200.34,200.31,0.03332331]
[1756557938397,2.47515666,200.34,200.31,7.70332331]
[1756557938593,2.59515666,200.37,200.31,7.70332331]
[1756557938798,0.12,200.37,200.31,7.70332331]
[1756557939098,2.59515666,200.36,200.31,0.03332331]
[1756557939301,0.12,200.35,200.31,0.03332331]
[1756557939600,0.12,200.32,200.31,0.03332331]
[1756557939993,2.59515666,200.32,200.31,0.03332331]
[1756557940294,2.47515666,200.32,200.31,0.03332331]
[1756557940700,0.12,200.37,200.31,0.03332331]
[1756557940899,2.47515666,200.36,200.31,0.03332331]
[1756557941094,0.12,200.35,200.31,0.03332331]
[1756557941300,0.12,200.32,200.31,0.03332331]
[1756557941596,0.12,200.32,200.23,7.67]
[1756557941794,2.47515666,200.3,200.23,7.67]
[1756557942501,2.47515666,200.24,200.13,7.67]
[1756557942901,0.12,200.26,200.13,7.67]
[1756557943101,0.03285738,200.21,200.13,7.67]
[1756557944100,0.03285738,200.21,200.15,2.47515666]
[1756557944406,2.47515666,200.26,200.16,7.67]
[1756557944602,2.47515666,200.26,200.16,7.70521806]
[1756557947699,0.16,200.27,200.16,7.70521806]
[1756557947904,2.47515666,200.24,200.16,7.70521806]
[1756557950404,2.47515666,200.27,200.17,2.47515666]
[1756557950604,2.47515666,200.27,200.18,7.67]
[1756557951307,0.16,200.31,200.21,7.67]
[1756557951308,2.47515666,200.3,200.21,7.67]
[1756557952303,2.47515666,200.34,200.22,2.47515666]
[1756557952504,2.47515666,200.34,200.23,7.67]
[1756557952894,2.47515666,200.31,200.23,7.67]
[1756557953098,2.63515666,200.31,200.26,0.03220557]
[1756557953296,2.47515666,200.31,200.27,7.67]
[1756557953605,0.16,200.35,200.26,0.03220557]
[1756557953809,5.88905954,200.34,200.26,0.03220557]
[1756557954106,2.47515666,200.35,200.27,7.67]
[1756557954807,2.47515666,200.37,200.27,7.67]
[1756557955006,3.41627948,200.36,200.27,7.67]
[1756557955305,3.41839426,200.35,200.27,7.67]
[1756557955502,2.47515666,200.37,200.29,0.03719121]
[1756557955697,3.41825101,200.36,200.29,0.03719121]
[1756557955898,3.41825101,200.35,200.29,0.03719121]
[1756557956200,2.47515666,200.38,200.3,7.67]
[1756557956405,3.41990315,200.37,200.3,7.67]
[1756557956602,2.47515666,200.38,200.3,7.67]
[1756557957199,0.16,200.4,200.3,7.67]
[1756557957398,5.89376117,200.39,200.3,7.67]
[1756557957709,3.41860451,200.38,200.3,10.14515666]
[1756557957910,2.47515666,200.39,200.31,7.67]
[1756557958210,2.47515666,200.42,200.31,7.67]
[1756557958403,3.41678462,200.41,200.31,7.67]
[1756557958603,2.47515666,200.42,200.31,7.67]
[1756557959005,2.47515666,200.42,200.34,0.03775929]
[1756557959402,2.47515666,200.42,200.34,7.70775929]
[1756557959700,2.47515666,200.43,200.34,7.70775929]
[1756557960003,3.41719061,200.42,200.34,7.70775929]
[1756557960204,2.47515666,200.43,200.34,7.70775929]
[1756557960404,3.41821058,200.42,200.34,7.70775929]
[1756557960607,335.94,200.44,200.34,7.70775929]
[1756557960608,0.16,200.44,200.34,7.70775929]
[1756557961009,0.16,200.41,200.34,0.03775929]
[1756557961309,5.43060973,200.48,200.34,7.70775929]
[1756557961506,2.47515666,200.43,200.34,7.67]
[1756557961704,2.47515666,200.43,200.39,0.03157687]
[1756557961906,0.16,200.42,200.39,0.03157687]
[1756557963512,2.47515666,200.44,200.39,0.03157687]
[1756557963715,0.16,200.48,200.4,7.67]
[1756557964015,5.89171182,200.47,200.4,7.67]
[1756557964315,3.41655516,200.46,200.4,7.67]
[1756557964610,3.41655516,200.45,200.4,7.67]
[1756557964814,3.41456641,200.44,200.39,0.03157687]
[1756557965013,2.47515666,200.42,200.39,0.03157687]
[1756557965308,2.47515666,200.44,200.39,0.03157687]
[1756557965816,0.16,200.43,200.39,0.03157687]
[1756557966811,2.47515666,200.45,200.39,0.03157687]
[1756557967109,2.63515666,200.45,200.39,0.03157687]
[1756557967911,0.16,200.45,200.39,0.03157687]
[1756557969114,0.15,200.5,200.4,7.83]
[1756557969309,2.47515666,200.47,200.4,7.83]
[1756557970021,2.47515666,200.47,200.41,0.03181291]
[1756557970316,0.15,200.48,200.41,0.03181291]
[1756557970713,2.47515666,200.47,200.41,0.03181291]
[1756557971114,0.15,200.48,200.41,0.03181291]
[1756557971419,2.47515666,200.47,200.41,0.03181291]
[1756557972221,0.15,200.48,200.41,0.03181291]
[1756557973718,2.47515666,200.46,200.41,0.03181291]
[1756557974120,2.47515666,200.44,200.41,0.03181291]
[1756557974320,0.15,200.43,200.41,0.03181291]
[1756557975422,2.47515666,200.44,200.41,0.03181291]
[1756557975621,0.15,200.43,200.41,0.03181291]
[1756557975817,2.47515666,200.44,200.41,0.03181291]
[1756557976025,0.15,200.43,200.41,0.03181291]
[1756557976222,2.47515666,200.44,200.41,0.03181291]
[1756557976520,0.15,200.43,200.41,0.03181291]
[1756557977224,2.47515666,200.44,200.41,0.03181291]
[1756557977419,0.15,200.43,200.41,0.03181291]
[1756557978423,0.15,200.42,200.41,0.03181291]
[1756557979426,2.47515666,200.43,200.41,0.03181291]
[1756557979627,0.15,200.48,200.41,0.03181291]
[1756557979825,2.47515666,200.47,200.41,0.03181291]
[1756557980924,0.15,200.48,200.41,0.03181291]
[1756557985638,2.47515666,200.5,200.42,7.83]
[1756557985835,2.62515666,200.5,200.42,7.83]
[1756557986436,0.15,200.5,200.42,7.83]
[1756557986642,2.62515666,200.5,200.42,7.83]
[1756557987939,0.15,200.5,200.42,7.83]
[1756557988736,2.47515666,200.53,200.42,7.83]
[1756557989340,0.15,200.52,200.42,7.83]
[1756557989541,0.15,200.52,200.45,0.03406141]
[1756557989736,2.47515666,200.5,200.45,0.03406141]
[1756557990345,0.15,200.49,200.45,0.03406141]
[1756557990537,2.47515666,200.5,200.45,0.03406141]
[1756557991241,0.15,200.49,200.45,0.03406141]
[1756557991442,2.47515666,200.5,200.45,0.03406141]
[1756557991642,0.15,200.48,200.45,0.03406141]
[1756557992045,0.15,200.53,200.45,0.03406141]
[1756557992342,0.15,200.49,200.45,0.03406141]
[1756557992842,2.47515666,200.5,200.45,0.03406141]
[1756557993047,0.15,200.49,200.45,0.03406141]
[1756557993343,0.15,200.49,200.45,7.86406141]
[1756557993541,0.15,200.55,200.46,7.83]
[1756557993848,0.15,200.52,200.46,7.83]
[1756557994048,3.57164977,200.51,200.46,7.83]
[1756557994244,0.15,200.5,200.46,7.83]
[1756557994441,0.15,200.5,200.45,7.86406141]
[1756557994636,0.15,200.5,200.46,7.83]
[1756557994843,2.47515666,200.53,200.45,7.86406141]
[1756557995048,3.42417855,200.52,200.45,7.86406141]
[1756557995237,3.42417855,200.51,200.45,7.86406141]
[1756557995442,2.62515666,200.55,200.46,7.83]
[1756557995643,3.42676439,200.54,200.46,7.83]
[1756557995845,3.42676439,200.53,200.46,7.83]
[1756557996046,3.42676439,200.52,200.46,7.83]
[1756557996246,3.42676439,200.51,200.45,7.86406141]
[1756557996448,3.42676439,200.5,200.46,7.83]
[1756557996646,2.62515666,200.55,200.46,7.83]
[1756557996844,3.42868768,200.54,200.46,7.83]
[1756557997045,2.62515666,200.52,200.45,0.03406141]
[1756557997246,0.15,200.48,200.45,0.03406141]
[1756557997448,0.15,200.46,200.45,0.03406141]
[1756557997646,3.57868768,200.46,200.45,0.03406141]
[1756557998248,0.46593859,200.44,200.38,7.5]
[1756557998552,3.42868768,200.43,200.37,7.5]
[1756557998747,0.15,200.46,200.37,7.5]
[1756557998951,3.43121601,200.45,200.37,7.5]
[1756557999151,3.43121601,200.44,200.37,7.5]
[1756557999348,0.15,200.46,200.37,7.5]
[1756557999550,3.4329124,200.45,200.37,7.5]
[1756557999746,3.4329124,200.44,200.37,7.5]
[1756557999955,0.03210836,200.44,200.37,7.5]
[1756558000151,0.03210836,200.44,200.4,7.5]
[1756558000648,0.15,200.51,200.4,7.5]
[1756558000853,0.03242798,200.44,200.39,2.47515666]
[1756558001245,0.03242798,200.44,200.4,7.5]
[1756558001957,0.03242798,200.44,200.39,2.47515666]
[1756558002449,0.03242798,200.44,200.4,7.5]
[1756558002850,0.03242798,200.44,200.39,2.47515666]
[1756558003160,0.03242798,200.44,200.41,7.5]
[1756558003842,0.03242798,200.44,200.31,7.5]
[1756558004045,3.42485084,200.43,200.34,7.5]
[1756558004246,3.42485084,200.42,200.34,7.5]
[1756558004456,2.47515666,200.45,200.34,7.5]
[1756558004661,3.42470574,200.44,200.34,7.5]
[1756558004951,0.03293281,200.4,200.34,7.5]
[1756558005157,3.42470574,200.39,200.32,7.5]
[1756558005351,0.03293281,200.4,200.32,7.5]
[1756558005658,3.42379052,200.39,200.32,7.5]
[1756558005955,0.03293281,200.4,200.32,7.5]
[1756558006155,3.42384546,200.39,200.32,7.5]
[1756558006352,0.03293281,200.4,200.32,7.5]
[1756558006557,3.42347795,200.39,200.32,7.5]
[1756558006754,0.03293281,200.4,200.32,7.5]
[1756558006954,3.4236384,200.39,200.32,7.5]
[1756558007154,0.03293281,200.4,200.32,7.5]
[1756558008360,3.42307417,200.39,200.32,7.5]
[1756558008658,0.03293281,200.4,200.32,7.5]
[1756558008857,3.42296889,200.39,200.32,7.5]
[1756558009056,0.03293281,200.4,200.32,7.5]
[1756558009365,3.42296889,200.39,200.32,7.5]
[1756558009657,0.03293281,200.4,200.32,7.5]
[1756558011559,0.03293281,200.4,200.33,2.47515666]
[1756558011754,0.03293281,200.4,200.34,7.5]
[1756558012762,3.57265539,200.39,200.34,7.5]
[1756558012961,0.03293281,200.4,200.3,7.5]
[1756558012962,0.18293281,200.4,200.3,7.5]
[1756558013262,5.89768723,200.39,200.3,7.5]
[1756558013462,2.47515666,200.39,200.3,7.5]
[1756558013663,3.42147194,200.38,200.3,7.5]
[1756558013863,2.47515666,200.39,200.3,7.5]
[1756558014062,3.42154557,200.38,200.3,7.5]
[1756558014258,2.47515666,200.39,200.3,7.5]
[1756558014463,3.42073768,200.38,200.3,7.5]
[1756558014652,2.47515666,200.39,200.3,7.5]
[1756558014857,3.42069549,200.38,200.3,7.5]
[1756558015058,3.42069549,200.37,200.3,7.5]
[1756558015256,2.47515666,200.39,200.3,7.5]
[1756558015460,3.42011654,200.38,200.3,7.5]
[1756558015663,3.42008865,200.37,200.3,7.5]
[1756558015859,0.15,200.38,200.3,7.5]
[1756558016162,3.42001681,200.37,200.3,7.5]
[1756558016363,0.15,200.38,200.3,7.5]
[1756558016565,5.89413459,200.37,200.3,7.5]
[1756558016760,0.15,200.43,200.3,7.5]
[1756558016959,2.47515666,200.4,200.3,7.5]
[1756558017170,3.41899989,200.39,200.3,7.5]
[1756558017463,2.47515666,200.4,200.3,7.5]
[1756558018062,2.47515666,200.4,200.31,7.5]
[1756558019162,2.62515666,200.43,200.33,2.47515666]
[1756558019363,3.41893245,200.42,200.34,7.5]
[1756558019554,3.41893245,200.41,200.34,7.5]
[1756558019755,2.62515666,200.43,200.34,7.5]
[1756558019957,3.41901281,200.42,200.34,7.5]
[1756558020155,2.62515666,200.43,200.34,7.5]
[1756558020367,3.41874111,200.42,200.34,7.5]
[1756558020567,114.22,200.48,200.34,7.5]
[1756558020568,2.47515666,200.45,200.34,7.5]
[1756558020762,3.41915583,200.44,200.34,7.5]
[1756558020964,3.41908736,200.43,200.34,7.5]
[1756558021166,6.04367584,200.42,200.34,7.5]
[1756558021364,0.15,200.38,200.3,7.5]
[1756558023566,2.47515666,200.36,200.3,7.5]
[1756558024069,2.47515666,200.41,200.3,2.47515666]
[1756558024269,3.41679115,200.4,200.31,7.5]
[1756558024468,2.47515666,200.41,200.31,7.5]
[1756558024671,2.47515666,200.44,200.34,7.5]
[1756558024864,3.41732113,200.43,200.34,7.5]
[1756558025065,2.47515666,200.44,200.34,7.5]
[1756558025370,3.41769928,200.43,200.34,7.5]
[1756558025669,2.47515666,200.44,200.34,7.5]
[1756558025873,3.41746157,200.43,200.34,7.5]
[1756558026168,2.47515666,200.44,200.34,7.5]
[1756558026376,3.41758538,200.43,200.34,7.5]
[1756558026669,2.47515666,200.44,200.34,7.5]
[1756558027162,3.41818843,200.43,200.34,7.5]
[1756558027362,2.47515666,200.5,200.4,7.9]
[1756558027569,3.41982957,200.49,200.4,7.9]
[1756558027764,2.47515666,200.5,200.4,7.9]
[1756558027975,2.47515666,200.47,200.4,7.9]
[1756558029567,2.47515666,200.49,200.4,7.9]
[1756558029766,3.4251729,200.48,200.4,7.9]
[1756558029969,2.47515666,200.49,200.4,7.9]
[1756558030167,3.4251729,200.48,200.4,7.9]
[1756558030366,2.47515666,200.49,200.4,7.9]
[1756558030566,3.42524277,200.48,200.4,7.9]
[1756558030770,2.47515666,200.49,200.4,7.9]
[1756558030969,3.42526426,200.48,200.4,7.9]
[1756558031170,2.47515666,200.49,200.4,7.9]
[1756558031370,3.42529921,200.48,200.4,7.9]
[1756558031571,2.47515666,200.49,200.4,7.9]
[1756558031769,3.42529921,200.48,200.4,7.9]
[1756558032070,2.47515666,200.49,200.4,7.9]
[1756558032266,3.42527103,200.48,200.4,7.9]
[1756558032471,2.47515666,200.49,200.4,7.9]
[1756558032672,3.42523018,200.48,200.4,7.9]
[1756558032971,2.47515666,200.49,200.4,7.9]
[1756558033171,3.42523018,200.48,200.4,7.9]
[1756558033373,2.47515666,200.49,200.4,7.9]
[1756558033573,3.42530084,200.48,200.4,7.9]
[1756558033773,2.47515666,200.49,200.4,7.9]
[1756558033973,3.42530084,200.48,200.4,7.9]
[1756558034170,2.47515666,200.49,200.4,7.9]
[1756558034374,3.42519362,200.48,200.4,7.9]
[1756558034575,2.47515666,200.49,200.4,7.9]
[1756558034774,3.42517212,200.48,200.4,7.9]
[1756558034976,2.47515666,200.49,200.4,7.9]
[1756558035176,3.42485203,200.48,200.4,7.9]
[1756558035379,2.47515666,200.49,200.4,7.9]
[1756558035671,0.11,200.47,200.4,7.9]
[1756558036377,2.47515666,200.46,200.4,7.9]
[1756558036874,0.11,200.47,200.4,7.9]
[1756558037064,2.58515666,200.47,200.4,7.9]
[1756558037373,0.11,200.53,200.4,7.9]
[1756558037566,2.47515666,200.51,200.4,7.9]
[1756558037876,3.42513975,200.5,200.4,7.9]
[1756558038871,2.47515666,200.55,200.43,7.9]
[1756558039072,3.42482688,200.54,200.43,7.9]
[1756558039274,3.42482688,200.53,200.43,7.9]
[1756558039478,0.11,200.54,200.43,7.9]
[1756558039673,3.42401845,200.53,200.43,7.9]
[1756558039876,0.11,200.54,200.43,7.9]
[1756558040069,3.42373233,200.53,200.43,7.9]
[1756558040271,0.11,200.54,200.43,7.9]
[1756558043278,2.47515666,200.55,200.43,7.9]
[1756558043478,2.47515666,200.55,200.45,2.47515666]
[1756558043679,335.58,200.56,200.46,7.9]
[1756558043870,2.47515666,200.58,200.46,7.9]
[1756558044074,3.42217852,200.57,200.46,7.9]
[1756558044374,2.47515666,200.6,200.49,7.9]
[1756558044577,3.42099595,200.59,200.49,7.9]
[1756558044779,0.16,200.66,200.42,2.47515666]
[1756558045081,2.47515666,200.58,200.48,7.9]
[1756558047578,0.16,200.6,200.48,7.9]
[1756558047880,0.16,200.6,200.5,7.9]
[1756558048076,130.48,200.66,200.53,7.9]
[1756558048282,5.89062953,200.65,200.53,7.9]
[1756558048481,3.41547287,200.64,200.53,7.9]
[1756558048681,2.47515666,200.65,200.53,7.9]
[1756558048882,3.41511465,200.64,200.53,7.9]
[1756558049077,2.47515666,200.65,200.53,7.9]
[1756558049482,3.41307973,200.64,200.53,7.9]
[1756558049680,2.47515666,200.65,200.53,7.9]
[1756558049877,3.41308062,200.64,200.53,7.9]
[1756558050185,2.47515666,200.65,200.53,7.9]
[1756558050478,0.03152594,200.61,200.53,7.9]
[1756558051482,0.03152594,200.61,200.51,7.9]
[1756558051682,0.03152594,200.61,200.52,2.47515666]
[1756558051880,0.03152594,200.61,200.53,7.9]
[1756558055083,0.03152594,200.61,200.53,10.37515666]
[1756558056888,0.03152594,200.61,200.54,7.9]
[1756558058389,0.14,200.6,200.54,7.9]
[1756558058984,0.03152594,200.61,200.54,7.9]
[1756558060087,2.62515666,200.6,200.54,7.9]
[1756558060888,0.15,200.6,200.54,7.9]
[1756558073505,2.62515666,200.6,200.54,7.9]
[1756558075602,0.15,200.6,200.54,7.9]
[1756558075897,2.5066826,200.61,200.54,7.9]
[1756558076301,2.6566826,200.61,200.54,7.9]
[1756558076506,0.18152594,200.61,200.54,7.9]
[1756558076702,2.6566826,200.61,200.54,7.9]
[1756558078298,2.5066826,200.61,200.54,7.9]
[1756558080013,0.03152594,200.61,200.54,7.9]
[1756558081401,0.18152594,200.61,200.54,7.9]
[1756558081605,2.47515666,200.57,200.54,7.9]
[1756558081906,2.47515666,200.56,200.47,8.12]
[1756558082315,0.15,200.57,200.47,8.12]
[1756558082610,2.47515666,200.61,200.5,8.12]
[1756558083203,0.03280555,200.58,200.5,8.12]
[1756558085010,2.47515666,200.57,200.5,8.12]
[1756558085707,0.03280555,200.58,200.5,8.12]
[1756558085909,2.50796221,200.58,200.5,8.12]
[1756558086311,0.03280555,200.58,200.5,8.12]
[1756558089716,3.44669479,200.57,200.52,8.03]
[1756558090015,0.03280555,200.58,200.52,8.03]
[1756558090016,3.44669479,200.56,200.52,8.03]
[1756558090215,2.47515666,200.61,200.52,8.03]
[1756558090409,3.44693319,200.6,200.52,8.03]
[1756558090616,3.44693319,200.59,200.52,8.03]
[1756558090918,3.44693319,200.58,200.52,8.03]
[1756558091111,3.44693319,200.57,200.51,8.03]
[1756558091317,3.44693319,200.56,200.51,8.03]
[1756558091611,5.92144734,200.55,200.48,8.03]
[1756558091812,3.44629068,200.54,200.48,8.03]
[1756558092117,3.44629068,200.53,200.43,8.03]
[1756558092311,3.44629068,200.52,200.43,8.03]
[1756558092510,3.44629068,200.51,200.43,8.03]
[1756558092706,0.03185517,200.53,200.43,8.03]
[1756558092914,3.42566211,200.52,200.43,8.03]
[1756558093114,3.42566211,200.51,200.43,8.03]
[1756558093316,0.03185517,200.53,200.43,8.03]
[1756558093510,3.4243209,200.52,200.43,8.03]
[1756558093717,3.4243209,200.51,200.43,8.03]
[1756558094013,3.4243209,200.51,200.33,335.32]
[1756558094014,2.47515666,200.45,200.34,8.03]
[1756558094215,3.42293022,200.44,200.35,8.03]
[1756558094411,2.47515666,200.45,200.35,8.03]
[1756558095120,2.47515666,200.42,200.35,8.03]
[1756558095321,2.50699794,200.42,200.35,8.03]
[1756558096918,2.65699794,200.42,200.35,8.03]
[1756558097417,2.62515666,200.39,200.35,8.03]
[1756558097621,2.47515666,200.39,200.31,8.03]
[1756558104023,2.47515666,200.33,200.14,8.03]
[1756558104217,2.47515666,200.33,200.1,2.47515666]
[1756558104218,0.15,200.32,200.22,8.03]
[1756558105823,2.47515666,200.3,200.22,8.03]
[1756558106421,2.62515666,200.32,200.22,8.03]
[1756558106619,2.62515666,200.32,200.23,8.03]
[1756558107225,2.47515666,200.31,200.23,8.03]
[1756558109022,0.15,200.32,200.23,8.03]
[1756558109728,2.47515666,200.36,200.25,2.47515666]
[1756558109928,2.47515666,200.36,200.26,8.03]
[1756558111627,2.47515666,200.4,200.29,8.03]
[1756558111833,2.47515666,200.4,200.31,2.47515666]
[1756558112031,2.47515666,200.4,200.32,8.03]
[1756558115839,335.34,200.41,200.32,2.47515666]
[1756558116038,0.16,200.42,200.33,8.03]
[1756558116639,0.03156736,200.4,200.33,8.03]
[1756558120047,0.03156736,200.4,200.36,7.48]
[1756558120346,0.16,200.49,200.39,7.48]
[1756558121550,0.16,200.49,200.42,0.03689433]
[1756558121744,0.16,200.49,200.42,7.51689433]
[1756558125446,2.47515666,200.5,200.42,7.51689433]
[1756558128446,2.66515666,200.5,200.42,7.51689433]
[1756558135752,3.40387006,200.49,200.42,7.51689433]
[1756558136055,131.64515666,200.5,200.42,7.51689433]
[1756558136256,3.40382573,200.49,200.42,7.51689433]
[1756558136557,131.64515666,200.5,200.42,7.51689433]
[1756558136752,3.40618761,200.49,200.42,7.51689433]
[1756558136952,131.64515666,200.5,200.42,7.51689433]
[1756558137259,3.40618761,200.49,200.42,7.51689433]
[1756558137556,2.47515666,200.49,200.42,7.51689433]
[1756558137952,129.17,200.5,200.42,7.51689433]
[1756558138256,5.88226416,200.49,200.42,7.51689433]
[1756558138457,2.47515666,200.49,200.42,7.51689433]
[1756558138955,335.46,200.53,200.42,7.51689433]
[1756558139152,2.47515666,200.51,200.42,7.51689433]
[1756558140160,335.46,200.53,200.42,7.51689433]
[1756558140349,335.46,200.53,200.44,2.47515666]
[1756558140654,335.46,200.53,200.45,7.48]
[1756558141059,335.46,200.53,200.47,0.03666916]
[1756558142452,0.19,200.54,200.47,7.51666916]
[1756558142657,128.86,200.55,200.47,7.51666916]
[1756558143159,2.47515666,200.53,200.47,7.48]
[1756558143358,0.19,200.52,200.49,0.03521098]
[1756558143558,2.47515666,200.53,200.49,0.03521098]
[1756558143962,0.19,200.52,200.49,0.03521098]
[1756558146161,2.47515666,200.53,200.49,0.03521098]
[1756558146360,0.19,200.52,200.49,0.03521098]
[1756558147260,0.17,200.59,200.49,7.78521098]
[1756558147463,2.47515666,200.56,200.49,7.78521098]